bitfinex/quotes_BTCUSD_20250826
["timestamp","ask_amount","ask_price","bid_price","bid_amount"]
[1756233994199,0.21021254,111110.0,111100.0,0.83928981]
[1756233994419,0.21226254,111110.0,111100.0,0.00215]
[1756233994645,0.180018,111100.0,111090.0,0.67951089]
[1756233994881,0.180018,111100.0,111090.0,0.83783089]
[1756233995125,0.180018,111100.0,111090.0,0.83998089]
[1756233995394,0.180018,111100.0,111090.0,0.65994822]
[1756233995600,0.19812293,111110.0,111100.0,0.180018]
[1756233995809,0.20012293,111110.0,111100.0,0.67604981]
[1756233995970,0.20012293,111110.0,111100.0,0.68116981]
[1756233996196,0.19812293,111110.0,111100.0,0.68116981]
[1756233996757,0.19612293,111110.0,111100.0,0.68116981]
[1756233997452,0.19712293,111110.0,111100.0,0.68116981]
[1756233997675,0.19912293,111110.0,111100.0,0.68116981]
[1756233999119,0.19912293,111110.0,111100.0,0.343258]
[1756233999565,0.003,111110.0,111100.0,0.343258]
[1756233999829,0.003,111110.0,111100.0,0.68116981]
[1756234000104,0.1830018,111110.0,111100.0,0.83924981]
[1756234000659,0.1810018,111110.0,111100.0,0.68116981]
[1756234000932,0.1810018,111110.0,111100.0,0.83924981]
[1756234001709,0.1800018,111110.0,111100.0,0.83924981]
[1756234002845,0.1800018,111110.0,111100.0,0.65923181]
[1756234003276,0.1800018,111110.0,111100.0,0.83924981]
[1756234005034,0.1800018,111110.0,111100.0,0.50115181]
[1756234005271,0.1800018,111110.0,111100.0,0.65895181]
[1756234005486,0.1800018,111110.0,111100.0,0.83896981]
[1756234006331,0.1800018,111110.0,111100.0,0.65895181]
[1756234006900,0.1820018,111110.0,111100.0,0.00512]
[1756234007114,0.1820018,111110.0,111100.0,0.15995]
[1756234007531,0.1851718,111110.0,111100.0,0.15995]
[1756234007978,0.1820018,111110.0,111100.0,0.15995]
[1756234008217,0.1820018,111110.0,111100.0,0.15975]
[1756234008695,0.1800018,111110.0,111100.0,0.15975]
[1756234008935,0.1820018,111110.0,111100.0,0.65877181]
[1756234009174,0.1820018,111110.0,111100.0,0.16274]
[1756234009394,0.1820018,111110.0,111100.0,0.15975]
[1756234009895,0.180018,111100.0,111090.0,0.00346641]
[1756234010114,0.180018,111100.0,111090.0,0.15803641]
[1756234010301,0.185188,111100.0,111090.0,0.15803641]
[1756234010544,0.68121981,111100.0,111090.0,0.15803641]
[1756234010968,0.68121981,111100.0,111090.0,0.00047641]
[1756234011172,0.7726651,111100.0,111090.0,0.15899641]
[1756234011374,1.1126651,111100.0,111090.0,0.15899641]
[1756234011785,1.1126651,111100.0,111090.0,0.00247641]
[1756234011991,1.1126651,111100.0,111090.0,0.15999641]
[1756234012195,1.1126651,111100.0,111090.0,0.00247641]
[1756234012655,1.1397421,111100.0,111090.0,0.00247641]
[1756234014282,0.64371029,111100.0,111090.0,0.00247641]
[1756234014749,0.552265,111100.0,111090.0,0.00247641]
[1756234014970,0.709705,111100.0,111090.0,0.00247641]
[1756234015190,1.20573681,111100.0,111090.0,0.00247641]
[1756234017020,0.709705,111100.0,111090.0,0.00247641]
[1756234017238,1.20573681,111100.0,111090.0,0.00247641]
[1756234017452,6.25840612,111100.0,111090.0,0.00247641]
[1756234018369,6.25832612,111100.0,111090.0,0.00147641]
[1756234018642,6.05840048,111100.0,111090.0,0.00047641]
[1756234018882,6.24147848,111100.0,111090.0,0.00047641]
[1756234020369,6.24247848,111100.0,111090.0,0.00047641]
[1756234021088,6.24313848,111100.0,111090.0,0.00047641]
[1756234021568,6.25789028,111100.0,111090.0,0.00047641]
[1756234022033,6.24313848,111100.0,111090.0,0.00047641]
[1756234022244,6.08577848,111100.0,111090.0,0.00047641]
[1756234022467,6.15103319,111100.0,111090.0,0.00047641]
[1756234023094,6.15103319,111100.0,111090.0,0.00346641]
[1756234023339,5.48019236,111100.0,111090.0,0.00548641]
[1756234023549,5.63649236,111100.0,111090.0,0.00548641]
[1756234023765,5.72899765,111100.0,111090.0,0.00548641]
[1756234024211,6.22502946,111100.0,111090.0,0.00047641]
[1756234024700,6.22973999,111100.0,111090.0,0.00548641]
[1756234026808,6.22973999,111100.0,111090.0,0.00346641]
[1756234027445,6.24383035,111100.0,111090.0,0.00346641]
[1756234027871,6.24383035,111100.0,111090.0,0.00368641]
[1756234029054,6.08647035,111100.0,111090.0,0.00368641]
[1756234029265,6.24383035,111100.0,111090.0,0.00564641]
[1756234029872,6.24383035,111100.0,111090.0,0.00368641]
[1756234030076,6.24383035,111100.0,111090.0,0.00047641]
[1756234031168,6.24383035,111100.0,111090.0,0.00368641]
[1756234031374,6.15132506,111100.0,111090.0,0.00564641]
[1756234031721,5.99502506,111100.0,111090.0,0.00564641]
[1756234031933,6.15238506,111100.0,111090.0,0.00564641]
[1756234032863,0.55415825,111100.0,111090.0,0.00564641]
[1756234033765,0.18772853,111100.0,111090.0,0.68396284]
[1756234033985,0.18772853,111100.0,111090.0,0.68171242]
[1756234034226,0.00771053,111100.0,111090.0,0.83907242]
[1756234034451,0.003,111100.0,111090.0,0.83907242]
[1756234034879,0.00770997,111100.0,111090.0,0.83907242]
[1756234035122,0.18772797,111100.0,111090.0,0.83907242]
[1756234036180,0.00770997,111100.0,111090.0,0.34304061]
[1756234036402,0.00770997,111100.0,111090.0,0.83907242]
[1756234037160,0.18772797,111100.0,111090.0,0.83907242]
[1756234038042,0.18772797,111100.0,111090.0,0.16300641]
[1756234041218,0.18772797,111100.0,111090.0,0.00564641]
[1756234041440,0.18772797,111100.0,111090.0,0.16296641]
[1756234042660,0.18878797,111100.0,111090.0,0.00564641]
[1756234042870,0.77119594,111100.0,111090.0,0.15779641]
[1756234043084,0.77119594,111100.0,111090.0,0.00564641]
[1756234043301,0.84213978,111100.0,111090.0,0.00368641]
[1756234043519,1.18213978,111100.0,111090.0,0.00047641]
[1756234043733,1.18279978,111100.0,111090.0,0.00047641]
[1756234043946,1.20987678,111100.0,111090.0,0.00047641]
[1756234044155,1.30132207,111100.0,111090.0,0.00047641]
[1756234044832,6.26254609,111100.0,111090.0,0.00047641]
[1756234045684,6.28198427,111100.0,111090.0,0.00047641]
[1756234046266,6.26254609,111100.0,111090.0,0.00047641]
[1756234046724,6.29674551,111100.0,111090.0,0.00047641]
[1756234047179,6.31083658,111100.0,111090.0,0.00047641]
[1756234049468,6.21873129,111100.0,111090.0,0.00047641]
[1756234050765,6.21939129,111100.0,111090.0,0.00047641]
[1756234050999,6.21873129,111100.0,111090.0,0.00047641]
[1756234051451,5.7142619,111100.0,111090.0,0.00047641]
[1756234051670,6.21872684,111100.0,111090.0,0.00047641]
[1756234051874,6.22874558,111100.0,111090.0,0.00047641]
[1756234055115,5.73337377,111100.0,111090.0,0.00047641]
[1756234055327,6.22940558,111100.0,111090.0,0.00047641]
[1756234056074,5.73337377,111100.0,111090.0,0.00047641]
[1756234056316,6.22940558,111100.0,111090.0,0.00047641]
[1756234056763,6.22097245,111100.0,111090.0,0.00047641]
[1756234057000,6.22940269,111100.0,111090.0,0.00047641]
[1756234057410,6.21531162,111100.0,111090.0,0.00047641]
[1756234057625,6.05799162,111100.0,111090.0,0.00047641]
[1756234057855,5.56129981,111100.0,111090.0,0.00047641]
[1756234058102,6.20459288,111100.0,111090.0,0.00047641]
[1756234058584,5.70922107,111100.0,111090.0,0.00047641]
[1756234058827,5.70856107,111100.0,111090.0,0.00047641]
[1756234059073,6.20459288,111100.0,111090.0,0.00047641]
[1756234059314,6.29603817,111100.0,111090.0,0.00047641]
[1756234059566,6.13941817,111100.0,111090.0,0.00047641]
[1756234059819,6.29719817,111100.0,111090.0,0.00047641]
[1756234060310,6.29785817,111100.0,111090.0,0.00047641]
[1756234060559,6.31194973,111100.0,111090.0,0.00047641]
[1756234061861,6.31194262,111100.0,111090.0,0.00047641]
[1756234062787,6.31194262,111100.0,111070.0,0.00307]
[1756234062788,0.53749943,111080.0,111070.0,0.00307]
[1756234063041,6.22699153,111080.0,111070.0,0.0035469]
[1756234063251,6.22699153,111080.0,111070.0,0.0055869]
[1756234063671,6.26816801,111080.0,111070.0,0.0055869]
[1756234064312,6.25878658,111080.0,111070.0,0.0055869]
[1756234064522,6.25978658,111080.0,111070.0,0.0055869]
[1756234065327,6.26084658,111080.0,111070.0,0.0055869]
[1756234065537,6.26184658,111080.0,111070.0,0.0055869]
[1756234065745,6.26078658,111080.0,111070.0,0.0055869]
[1756234066158,6.26184658,111080.0,111070.0,0.0055869]
[1756234066365,6.26184658,111080.0,111070.0,0.0004769]
[1756234066577,6.75787839,111080.0,111070.0,0.0004769]
[1756234067209,6.26184658,111080.0,111070.0,0.0004769]
[1756234067414,6.75787839,111080.0,111070.0,0.0004769]
[1756234067643,6.7836177,111080.0,111070.0,0.0004769]
[1756234068272,0.19751564,111070.0,111060.0,0.00307]
[1756234068473,0.52008283,111060.0,111050.0,0.00347]
[1756234068687,1.17399464,111060.0,111050.0,0.00394733]
[1756234068829,1.18769279,111060.0,111050.0,0.00598733]
[1756234069047,1.19130379,111060.0,111050.0,0.00598733]
[1756234069248,0.69527198,111060.0,111050.0,0.00598733]
[1756234069493,1.25737224,111060.0,111050.0,0.00598733]
[1756234070762,1.19130379,111060.0,111050.0,0.00598733]
[1756234071183,1.19130379,111060.0,111050.0,0.00698733]
[1756234071380,1.19130379,111060.0,111050.0,0.00898733]
[1756234071620,1.19236379,111060.0,111050.0,0.00898733]
[1756234071779,6.13613879,111060.0,111050.0,0.00898733]
[1756234071985,6.2450331,111060.0,111050.0,0.00387733]
[1756234072367,6.2644621,111060.0,111050.0,0.00387733]
[1756234072775,6.2707874,111060.0,111050.0,0.00387733]
[1756234072975,6.2707874,111060.0,111050.0,0.00287733]
[1756234073382,6.27078738,111060.0,111050.0,0.00087733]
[1756234073794,6.27050738,111060.0,111050.0,0.00187733]
[1756234074434,6.27150738,111060.0,111050.0,0.00087733]
[1756234074829,6.27250738,111060.0,111050.0,0.00087733]
[1756234078303,6.96919919,111060.0,111050.0,1e-08]
[1756234078504,7.26794244,111060.0,111050.0,1e-08]
[1756234078729,7.25156377,111060.0,111050.0,1e-08]
[1756234078892,6.75553196,111060.0,111050.0,1e-08]
[1756234079097,6.76962938,111060.0,111050.0,1e-08]
[1756234079303,6.76862938,111060.0,111050.0,1e-08]
[1756234079509,6.77534156,111060.0,111050.0,1e-08]
[1756234079711,6.77434156,111060.0,111050.0,1e-08]
[1756234079977,6.61678156,111060.0,111050.0,1e-08]
[1756234080186,6.77734156,111060.0,111050.0,1e-08]
[1756234080415,6.36912156,111060.0,111050.0,1e-08]
[1756234080630,6.52660156,111060.0,111050.0,1e-08]
[1756234080840,6.77660156,111060.0,111050.0,1e-08]
[1756234081053,6.52660156,111060.0,111050.0,1e-08]
[1756234081517,6.77660156,111060.0,111050.0,1e-08]
[1756234081941,6.77656156,111060.0,111050.0,1e-08]
[1756234082177,6.52656156,111060.0,111050.0,1e-08]
[1756234082389,6.82496564,111060.0,111050.0,1e-08]
[1756234082828,6.32893383,111060.0,111050.0,1e-08]
[1756234083052,6.82496564,111060.0,111050.0,1e-08]
[1756234083479,6.41752564,111060.0,111050.0,1e-08]
[1756234083697,6.57492564,111060.0,111050.0,1e-08]
[1756234084573,6.82492564,111060.0,111050.0,1e-08]
[1756234084738,6.55822599,111060.0,111050.0,1e-08]
[1756234084943,6.73896882,111060.0,111050.0,1e-08]
[1756234085155,6.73896105,111060.0,111050.0,1e-08]
[1756234085357,6.52137081,111060.0,111050.0,1e-08]
[1756234085615,6.77137081,111060.0,111050.0,1e-08]
[1756234085820,6.52137081,111060.0,111050.0,1e-08]
[1756234086234,0.39754807,111050.0,111040.0,1e-08]
[1756234086498,6.68318706,111050.0,111040.0,1e-08]
[1756234086683,6.68424706,111050.0,111040.0,1e-08]
[1756234086873,7.02424706,111050.0,111040.0,1e-08]
[1756234087029,7.02490706,111050.0,111040.0,1e-08]
[1756234087490,7.06609651,111050.0,111040.0,1e-08]
[1756234087711,7.06543651,111050.0,111040.0,1e-08]
[1756234087919,7.06743651,111050.0,111040.0,1e-08]
[1756234089225,7.07104951,111050.0,111040.0,1e-08]
[1756234089720,6.30081497,111050.0,111040.0,0.00530001]
[1756234090725,6.79790678,111050.0,111040.0,1e-08]
[1756234091210,5.80584316,111050.0,111040.0,1e-08]
[1756234091449,6.33428473,111050.0,111040.0,0.00530001]
[1756234091695,6.17688473,111050.0,111040.0,0.00530001]
[1756234091937,6.39332026,111050.0,111040.0,0.00313001]
[1756234092172,6.88935207,111050.0,111040.0,0.00313001]
[1756234092885,6.88935207,111050.0,111040.0,1e-08]
[1756234093308,6.88935207,111050.0,111020.0,0.0004]
[1756234093309,0.52013149,111030.0,111020.0,0.0004]
[1756234093551,6.23736332,111030.0,111020.0,0.0004]
[1756234093785,6.23736332,111030.0,111020.0,0.00257]
[1756234094022,6.27855854,111030.0,111020.0,0.00257]
[1756234094285,6.23118288,111030.0,111020.0,0.0004]
[1756234094512,6.21708366,111030.0,111020.0,0.0004]
[1756234094760,6.21392366,111030.0,111020.0,0.0014]
[1756234095004,6.31346061,111030.0,111020.0,0.0024]
[1756234096442,1.01617953,111020.0,111000.0,0.5]
[1756234096714,1.19786883,111010.0,111000.0,0.50313]
[1756234096978,6.20179496,111010.0,111000.0,0.5053]
[1756234097206,6.22389596,111010.0,111000.0,0.5053]
[1756234097439,6.76675742,111010.0,111000.0,0.5053]
[1756234097918,6.76675742,111010.0,111000.0,0.5]
[1756234097919,6.76927447,111010.0,111000.0,0.5]
[1756234098168,6.83526965,111010.0,111000.0,0.5]
[1756234098406,6.84937134,111010.0,111000.0,0.5]
[1756234098646,6.80398518,111010.0,111000.0,1e-08]
[1756234099108,5.81192156,111010.0,111000.0,1e-08]
[1756234099824,5.65236156,111010.0,111000.0,1e-08]
[1756234100069,5.80976156,111010.0,111000.0,1e-08]
[1756234100270,1.5122438,111000.0,110990.0,0.00313]
[1756234100608,6.59747214,111000.0,110990.0,0.00313]
[1756234100913,5.51396323,111000.0,110990.0,0.0053]
[1756234100975,6.68682685,111000.0,110990.0,0.0053]
[1756234101314,6.52942685,111000.0,110990.0,0.0053]
[1756234101551,6.68686685,111000.0,110990.0,0.0053]
[1756234102014,5.69480323,111000.0,110990.0,0.0053]
[1756234102210,6.77831214,111000.0,110990.0,0.0053]
[1756234102782,6.62087214,111000.0,110990.0,0.0053]
[1756234103029,6.77831214,111000.0,110990.0,0.0053]
[1756234103508,6.00281599,111000.0,110990.0,0.0053]
[1756234103761,5.66422418,111000.0,110990.0,0.0053]
[1756234103993,6.16025599,111000.0,110990.0,0.0053]
[1756234104741,6.6562878,111000.0,110990.0,0.0053]
[1756234104988,6.6583278,111000.0,110990.0,0.00217]
[1756234105254,0.18019641,110990.0,110980.0,0.00353]
[1756234105513,5.79687222,110990.0,110980.0,0.00353]
[1756234105769,6.13687222,110990.0,110980.0,0.0057]
[1756234106299,0.52021265,110980.0,110970.0,0.0234]
[1756234106483,6.16745536,110980.0,110970.0,0.0234]
[1756234106720,6.16949536,110980.0,110970.0,0.02557]
[1756234106959,6.19660236,110980.0,110970.0,0.0287]
[1756234107156,6.21070804,110980.0,110970.0,0.0287]
[1756234107401,6.14471333,110980.0,110970.0,0.0287]
[1756234107629,6.20235186,110980.0,110970.0,0.0287]
[1756234108339,6.04491186,110980.0,110970.0,0.0287]
[1756234108582,6.21146525,110980.0,110970.0,0.0287]
[1756234108813,6.05402525,110980.0,110970.0,0.0287]
[1756234109042,6.23570658,110980.0,110970.0,0.0287]
[1756234109272,5.73967477,110980.0,110970.0,0.0287]
[1756234109493,6.07826658,110980.0,110970.0,0.0287]
[1756234109713,6.23670658,110980.0,110970.0,0.0287]
[1756234110419,1.26056747,110980.0,110970.0,0.0287]
[1756234111336,1.35201276,110980.0,110970.0,0.0287]
[1756234111972,1.32777143,110980.0,110970.0,0.0287]
[1756234112715,1.34064398,110980.0,110970.0,0.0287]
[1756234113312,1.36488531,110980.0,110970.0,0.0287]
[1756234113553,1.35439287,110980.0,110970.0,0.0287]
[1756234113765,1.10550758,110980.0,110970.0,0.0287]
[1756234114195,1.10550758,110980.0,110970.0,0.20892889]
[1756234114196,0.03430155,110980.0,110970.0,0.20892889]
[1756234114415,0.002,110980.0,110970.0,0.20892889]
[1756234115068,0.37409018,111000.0,110980.0,0.18021265]
[1756234115285,0.18019641,110990.0,110980.0,0.18021265]
[1756234115509,0.18019641,110990.0,110980.0,0.1824653]
[1756234115717,0.18019641,110990.0,110980.0,0.1846353]
[1756234115950,0.18019641,110990.0,110980.0,0.18551265]
[1756234116227,0.19273383,110990.0,110980.0,0.0053]
[1756234116432,0.19273383,110990.0,110980.0,0.00755265]
[1756234117176,0.19273383,110990.0,110980.0,0.1877653]
[1756234117371,0.19273383,110990.0,110980.0,0.18551265]
[1756234117642,0.18019641,110990.0,110980.0,0.18651265]
[1756234118544,0.18019641,110990.0,110980.0,0.18751265]
[1756234120017,0.18019641,110990.0,110980.0,0.0073]
[1756234120162,0.18019641,110990.0,110980.0,0.0118053]
[1756234120374,0.66573578,110990.0,110980.0,0.0118053]
[1756234120578,1.00573578,110990.0,110980.0,0.0073]
[1756234121253,0.52019641,110990.0,110980.0,0.0073]
[1756234121457,0.52019641,110990.0,110980.0,0.0118053]
[1756234121657,0.18019641,110990.0,110980.0,0.19201795]
[1756234121865,0.18019641,110990.0,110980.0,0.18751265]
[1756234121866,0.52019641,110990.0,110980.0,0.18751265]
[1756234123167,0.34,110990.0,110980.0,0.27897467]
[1756234123412,0.52019641,110990.0,110980.0,0.27897467]
[1756234123760,0.34,110990.0,110980.0,0.27897467]
[1756234123969,0.22584811,111010.0,110990.0,0.18019641]
[1756234124168,0.52018018,111000.0,110990.0,0.33763641]
[1756234124374,0.34,111000.0,110990.0,0.33975641]
[1756234124567,0.52018018,111000.0,110990.0,0.33975641]
[1756234124873,0.52018018,111000.0,110990.0,0.34274641]
[1756234125323,0.52018018,111000.0,110990.0,0.16255]
[1756234125464,0.52018018,111000.0,110990.0,0.16480245]
[1756234125665,0.52018018,111000.0,110990.0,0.00736245]
[1756234125909,0.52018018,111000.0,110990.0,0.16480245]
[1756234126067,0.52018018,111000.0,110990.0,0.1670549]
[1756234126281,0.52018018,111000.0,110990.0,0.16480245]
[1756234126967,0.52018018,111000.0,110990.0,0.00736245]
[1756234127182,1.00571955,111000.0,110990.0,0.16255]
[1756234127578,1.00571955,111000.0,110990.0,0.1670549]
[1756234127772,1.00571955,111000.0,110990.0,0.16480245]
[1756234129172,1.00571955,111000.0,110990.0,0.00736245]
[1756234129375,0.18019641,110990.0,110980.0,0.22975]
[1756234129586,0.66788578,110990.0,110980.0,0.16255]
[1756234129995,0.66573578,110990.0,110980.0,0.1670553]
[1756234130203,0.18019641,110990.0,110980.0,0.3450153]
[1756234130411,0.18019641,110990.0,110980.0,0.34276265]
[1756234130614,0.18019641,110990.0,110980.0,0.34376265]
[1756234130852,0.18019641,110990.0,110980.0,0.34576265]
[1756234133016,1.00571955,111000.0,110980.0,0.43722467]
[1756234133231,0.18019641,110990.0,110980.0,0.43423467]
[1756234133806,0.18019641,110990.0,110980.0,0.43722467]
[1756234134030,0.18019641,110990.0,110980.0,0.43522467]
[1756234134186,0.18019641,110990.0,110980.0,0.43422467]
[1756234134626,1.00571955,111000.0,110980.0,0.43422467]
[1756234134970,1.00571955,111000.0,110990.0,0.00299]
[1756234135205,1.00571955,111000.0,110990.0,0.00736245]
[1756234135392,1.01707003,111000.0,110990.0,0.00736245]
[1756234135611,1.01922003,111000.0,110990.0,0.00736245]
[1756234136087,0.18019641,110990.0,110980.0,0.09445202]
[1756234136257,0.18019641,110990.0,110980.0,0.43518467]
[1756234136462,0.18019641,110990.0,110980.0,0.43718467]
[1756234136668,0.18019641,110990.0,110980.0,0.25397202]
[1756234137120,0.67708626,110990.0,110980.0,0.25397202]
[1756234137649,0.67708626,110990.0,110980.0,0.43718467]
[1756234138773,0.67708626,110990.0,110980.0,0.25697202]
[1756234138969,0.18019641,110990.0,110980.0,0.25697202]
[1756234139187,0.67708626,110990.0,110980.0,0.09957202]
[1756234139384,0.67923626,110990.0,110980.0,0.25697202]
[1756234140382,0.68238626,110990.0,110980.0,0.003]
[1756234140589,0.75503098,110990.0,110980.0,0.1604]
[1756234140799,1.09503098,110990.0,110980.0,0.003]
[1756234141012,1.18647627,110990.0,110980.0,0.003]
[1756234141224,1.25243098,110990.0,110980.0,0.003]
[1756234142604,1.09503098,110990.0,110980.0,0.003]
[1756234142816,0.52234641,110990.0,110980.0,0.00811]
[1756234143031,1.01923626,110990.0,110980.0,0.00811]
[1756234143250,0.52234641,110990.0,110980.0,0.00811]
[1756234143705,1.01923626,110990.0,110980.0,0.00512]
[1756234144363,1.02238626,110990.0,110980.0,0.003]
[1756234145326,1.01923626,110990.0,110980.0,0.003]
[1756234145561,1.01923626,110990.0,110980.0,0.00512]
[1756234145562,0.52234641,110990.0,110980.0,0.00512]
[1756234145764,1.00771012,110990.0,110980.0,0.00512]
[1756234146173,1.00771012,110990.0,110980.0,0.00811]
[1756234146867,0.34,110990.0,110980.0,0.19282795]
[1756234147078,0.18018018,111000.0,110990.0,0.18019641]
[1756234147337,0.52018018,111000.0,110990.0,0.34293641]
[1756234147882,0.18019641,110990.0,110980.0,0.09771202]
[1756234148050,0.18019641,110990.0,110980.0,0.43332467]
[1756234148258,0.66770012,110990.0,110980.0,0.00634]
[1756234148470,0.66770012,110990.0,110980.0,0.1584]
[1756234148663,0.66770012,110990.0,110980.0,0.16049]
[1756234148868,0.66770012,110990.0,110980.0,0.15949]
[1756234149290,0.66770012,110990.0,110980.0,0.16274]
[1756234149524,0.66770012,110990.0,110980.0,0.16474]
[1756234149760,0.18019641,110990.0,110980.0,0.34495265]
[1756234150027,0.18019641,110990.0,110980.0,0.34595265]
[1756234150723,0.18233641,110990.0,110980.0,0.16574]
[1756234151982,0.66770012,110990.0,110980.0,0.16574]
[1756234152311,0.18233641,110990.0,110980.0,0.16574]
[1756234152527,0.74338484,110990.0,110980.0,0.1604]
[1756234153040,0.74034484,110990.0,110980.0,0.1604]
[1756234153512,0.66770012,110990.0,110980.0,0.1604]
[1756234153751,0.67074012,110990.0,110980.0,0.1604]
[1756234154151,0.66770012,110990.0,110980.0,0.1604]
[1756234154396,1.00770012,110990.0,110980.0,0.1604]
[1756234156591,1.01074012,110990.0,110980.0,0.16036]
[1756234157008,1.24074484,110990.0,110980.0,0.003]
[1756234157419,1.26784684,110990.0,110980.0,0.003]
[1756234160210,0.78248313,110990.0,110980.0,0.003]
[1756234160421,1.26784684,110990.0,110980.0,0.003]
[1756234162855,1.03784212,110990.0,110980.0,0.003]
[1756234163090,1.19216212,110990.0,110980.0,0.00509]
[1756234163344,1.20626575,110990.0,110980.0,0.00834]
[1756234163718,1.20626575,110990.0,110980.0,0.00509]
[1756234164159,1.19216212,110990.0,110980.0,0.00509]
[1756234164521,1.03480212,110990.0,110980.0,0.00509]
[1756234164851,1.19216212,110990.0,110980.0,0.00509]
[1756234165045,1.19216212,110990.0,110980.0,0.003]
[1756234166660,0.54729841,110990.0,110980.0,0.00834]
[1756234166867,1.03266212,110990.0,110980.0,0.00834]
[1756234167321,0.52019641,110990.0,110980.0,0.1908053]
[1756234167533,1.0171177,110990.0,110980.0,0.34591265]
[1756234169290,1.00551029,110990.0,110980.0,0.34591265]
[1756234169544,1.00551029,110990.0,110980.0,0.1657]
[1756234170442,1.00551029,110990.0,110980.0,0.34591265]
[1756234170746,0.52019641,110990.0,110980.0,0.34591265]
[1756234171189,0.34,110990.0,110980.0,0.34591265]
[1756234171409,0.18019641,110990.0,110980.0,0.34591265]
[1756234171836,0.18019641,110990.0,110980.0,0.34524772]
[1756234173040,0.67020687,111000.0,110980.0,0.38663193]
[1756234173041,0.00471281,111000.0,110980.0,0.38663193]
[1756234173293,0.00471281,111000.0,110990.0,0.18795131]
[1756234173537,0.52064737,111010.0,111000.0,0.18018018]
[1756234173780,0.52064737,111010.0,111000.0,0.00534]
[1756234174752,0.52278737,111010.0,111000.0,0.00534]
[1756234175474,0.51690672,111010.0,111000.0,0.00434]
[1756234175716,1.0022206,111010.0,111000.0,0.00434]
[1756234175953,1.0052206,111010.0,111000.0,0.00434]
[1756234176429,0.18018018,111000.0,110990.0,0.25276641]
[1756234176690,0.18018018,111000.0,110990.0,0.41217641]
[1756234177346,0.18018018,111000.0,110990.0,0.07466]
[1756234177582,0.66762406,111000.0,110990.0,0.15732]
[1756234177827,0.66762406,111000.0,110990.0,0.15943]
[1756234178559,0.66862406,111000.0,110990.0,0.15943]
[1756234179019,0.66862406,111000.0,110990.0,0.33962641]
[1756234179238,0.66862406,111000.0,110990.0,0.34267641]
[1756234179882,0.001,111000.0,110990.0,0.34267641]
[1756234181375,1.00808879,111010.0,110990.0,0.34267641]
[1756234181589,1.00808879,111010.0,111000.0,0.00530225]
[1756234181798,1.01021879,111010.0,111000.0,0.00741225]
[1756234182874,1.01021879,111010.0,111000.0,0.18759243]
[1756234183093,1.01021879,111010.0,111000.0,0.00516]
[1756234183313,0.52277491,111010.0,111000.0,0.18759243]
[1756234183536,0.52277491,111010.0,111000.0,0.18534018]
[1756234183963,0.51376672,111010.0,111000.0,0.18534018]
[1756234185284,0.51376034,111010.0,111000.0,0.18534018]
[1756234187214,0.7471137,111020.0,111000.0,0.18534018]
[1756234187446,1.0871137,111020.0,111010.0,0.15949204]
[1756234187662,1.0892437,111020.0,111010.0,0.15949204]
[1756234187876,0.54344499,111020.0,111010.0,0.34176598]
[1756234188108,0.54131499,111020.0,111010.0,0.34256394]
[1756234188323,0.54231499,111020.0,111010.0,0.34256394]
[1756234188530,0.54431499,111020.0,111010.0,0.34256394]
[1756234188761,0.52114772,111020.0,111010.0,0.34256394]
[1756234189188,0.341,111020.0,111010.0,0.34256394]
[1756234189830,0.343,111020.0,111010.0,0.34256394]
[1756234190048,0.52314772,111020.0,111010.0,0.34256394]
[1756234190267,0.53657317,111020.0,111010.0,0.34256394]
[1756234190480,0.18016394,111010.0,111000.0,0.24953887]
[1756234190700,0.18016394,111010.0,111000.0,0.50125089]
[1756234190916,0.18229394,111010.0,111000.0,0.50336089]
[1756234191131,0.66760782,111010.0,111000.0,0.50031089]
[1756234191375,0.67907354,111010.0,111000.0,0.07147741]
[1756234191588,0.67907354,111010.0,111000.0,4.741e-05]
[1756234191804,0.67907354,111010.0,111000.0,0.15724741]
[1756234192034,0.67907354,111010.0,111000.0,0.15824741]
[1756234192035,0.68204354,111010.0,111000.0,0.15824741]
[1756234192457,0.67907354,111010.0,111000.0,0.33942759]
[1756234192715,0.67907354,111010.0,111000.0,0.34153759]
[1756234192933,0.18229394,111010.0,111000.0,0.34153759]
[1756234193145,0.68964317,111020.0,111000.0,0.34458759]
[1756234193363,1.18642277,111020.0,111010.0,0.00225204]
[1756234193581,1.19152277,111020.0,111010.0,0.00225204]
[1756234194014,1.19152277,111020.0,111000.0,0.00104741]
[1756234194015,0.18016394,111010.0,111000.0,0.00104741]
[1756234194228,0.67694354,111010.0,111000.0,0.15724741]
[1756234194442,0.67907354,111010.0,111000.0,4.741e-05]
[1756234194668,0.67907354,111010.0,111000.0,0.15720741]
[1756234194880,0.68204354,111010.0,111000.0,0.15720741]
[1756234195092,0.68204354,111010.0,111000.0,0.15820741]
[1756234195305,1.02204354,111010.0,111000.0,0.00104741]
[1756234196573,1.02204354,111010.0,111000.0,0.00204741]
[1756234197512,1.02204354,111010.0,111000.0,0.00429966]
[1756234200305,1.02204354,111010.0,111000.0,0.00204741]
[1756234200671,1.56149922,111010.0,111000.0,0.00204741]
[1756234201526,1.58859822,111010.0,111000.0,0.00104741]
[1756234201920,1.59359822,111010.0,111000.0,0.00104741]
[1756234202130,1.75071822,111010.0,111000.0,0.00104741]
[1756234202536,1.75071822,111010.0,111000.0,4.741e-05]
[1756234202859,1.75371822,111010.0,111000.0,4.741e-05]
[1756234203067,6.71695089,111010.0,111000.0,4.741e-05]
[1756234203272,6.69749322,111010.0,111000.0,4.741e-05]
[1756234203494,6.18933241,111010.0,111000.0,4.741e-05]
[1756234204146,6.20343459,111010.0,111000.0,4.741e-05]
[1756234204593,6.04631459,111010.0,111000.0,4.741e-05]
[1756234204827,6.20343459,111010.0,111000.0,4.741e-05]
[1756234206582,6.04631459,111010.0,111000.0,4.741e-05]
[1756234206788,6.20343459,111010.0,111000.0,4.741e-05]
[1756234207630,6.04631459,111010.0,111000.0,4.741e-05]
[1756234207838,6.20343459,111010.0,111000.0,4.741e-05]
[1756234208253,6.14286462,111010.0,111000.0,4.741e-05]
[1756234208465,0.55657123,111010.0,111000.0,0.00308741]
[1756234208674,1.18498744,111010.0,111000.0,4.741e-05]
[1756234209603,1.18198744,111010.0,111000.0,4.741e-05]
[1756234209836,1.18398744,111010.0,111000.0,4.741e-05]
[1756234210187,1.1980896,111010.0,111000.0,4.741e-05]
[1756234211309,1.28817093,111010.0,111000.0,4.741e-05]
[1756234211510,1.28317093,111010.0,111000.0,4.741e-05]
[1756234211803,1.28617093,111010.0,111000.0,4.741e-05]
[1756234213413,1.28613093,111010.0,111000.0,0.00308741]
[1756234213616,1.1960496,111010.0,111000.0,0.00308741]
[1756234214004,1.18194744,111010.0,111000.0,0.00515741]
[1756234214457,1.15484844,111010.0,111000.0,0.00515741]
[1756234215542,0.51237005,111010.0,111000.0,0.00515741]
[1756234215760,0.99776844,111010.0,111000.0,0.00515741]